fUST/lending_fUST_20250210
["ID","MTS","AMOUNT","RATE_DAILY","PERIOD"]
[352504041,1739140239558,-626.02710013,0.00011095,2]
[352504042,1739140239567,-500.0,0.00011095,2]
[352504043,1739140239576,-500.0,0.00011095,2]
[352504044,1739140239586,-425.15,0.00011095,2]
[352504045,1739140239595,-264.93,0.00011095,2]
[352504046,1739140239605,-500.0,0.00011095,2]
[352504047,1739140239615,-1531.81,0.00011095,2]
[352504048,1739140239624,-500.0,0.00011095,2]
[352504049,1739140239634,-1821.47,0.00011095,2]
[352504050,1739140239644,-204.61,0.00011095,2]
[352504051,1739140239653,-500.0,0.00011095,2]
[352504053,1739140239662,-500.0,0.00011231,2]
[352504055,1739140239671,-500.0,0.00011231,2]
[352504056,1739140239680,-500.0,0.00011231,2]
[352504057,1739140239690,-500.0,0.00011231,2]
[352504058,1739140239699,-500.0,0.00011231,2]
[352504059,1739140239711,-500.0,0.00011231,2]
[352504060,1739140239721,-500.0,0.00011231,2]
[352504061,1739140239730,-500.0,0.00011231,2]
[352504062,1739140239739,-500.0,0.00011231,2]
[352504064,1739140239748,-500.0,0.00011231,2]
[352504066,1739140239759,-500.0,0.00011231,2]
[352504068,1739140239770,-500.0,0.00011231,2]
[352504070,1739140239779,-500.0,0.00011231,2]
[352504071,1739140239788,-623.88000124,0.00011231,2]
[352504072,1739140239799,-500.0,0.00011231,2]
[352504073,1739140239809,-500.0,0.00011231,2]
[352504074,1739140239818,-500.0,0.00011231,2]
[352504075,1739140239833,-500.0,0.00011231,2]
[352504076,1739140239842,-500.0,0.00011231,2]
[352504077,1739140239851,-500.0,0.00011231,2]
[352504078,1739140239861,-500.0,0.00011231,2]
[352504079,1739140239871,-500.0,0.00011231,2]
[352504080,1739140239880,-500.0,0.00011231,2]
[352504081,1739140239889,-500.0,0.00011231,2]
[352504083,1739140239900,-500.0,0.00011231,2]
[352504085,1739140239910,-614.92001117,0.00011231,2]
[352504086,1739140239920,-500.0,0.00011231,2]
[352504088,1739140239930,-500.0,0.00011231,2]
[352504090,1739140239940,-500.0,0.00011231,2]
[352504091,1739140239949,-500.0,0.00011231,2]
[352504092,1739140239959,-618.58718841,0.00011232,2]
[352504093,1739140239968,-849.00000101,0.00011232,2]
[352504094,1739140239978,-500.0,0.00011232,2]
[352504095,1739140239987,-500.0,0.00011232,2]
[352504096,1739140239996,-500.0,0.00011232,2]
[352504097,1739140240007,-320.35,0.00011232,2]
[352504098,1739140240018,-2838.69,0.00011232,2]
[352504099,1739140240027,-500.0,0.00011232,2]
[352504100,1739140240037,-500.0,0.00011232,2]
[352504101,1739140240047,-500.0,0.00011232,2]
[352504102,1739140240056,-639.41,0.00011232,2]
[352504103,1739140240066,-500.0,0.00011232,2]
[352504104,1739140240076,-256.56,0.00011232,2]
[352504105,1739140240086,-842.39,0.00011232,2]
[352504106,1739140240096,-500.0,0.00011232,2]
[352504107,1739140240105,-500.0,0.00011232,2]
[352504108,1739140240115,-621.45,0.00011232,2]
[352504109,1739140240124,-500.0,0.00011232,2]
[352504110,1739140240135,-500.0,0.00011232,2]
[352504111,1739140240145,-500.0,0.00011232,2]
[352504112,1739140240155,-500.0,0.00011232,2]
[352504113,1739140240165,-348.92,0.00011232,2]
[352504115,1739140240174,-500.0,0.00011232,2]
[352504117,1739140240184,-500.0,0.00011232,2]
[352504119,1739140240194,-289.05331791,0.00011232,2]
[352504121,1739140240204,-500.0,0.00011232,2]
[352504122,1739140240214,-500.0,0.00011232,2]
[352504123,1739140240223,-549.39,0.00011232,2]
[352504124,1739140240234,-1531.81,0.00011232,2]
[352504125,1739140240244,-554.22,0.00011232,2]
[352504126,1739140240253,-1821.47,0.00011232,2]
[352504127,1739140240263,-500.0,0.00011261,2]
[352504128,1739140240272,-319.34145813,0.00011369,2]
[352504129,1739140240282,-500.0,0.00011369,2]
[352504130,1739140240292,-276.77419009,0.00011369,2]
[352504131,1739140240302,-2838.69,0.00011369,2]
[352504132,1739140240311,-500.0,0.00011369,2]
[352504133,1739140240320,-500.0,0.00011369,2]
[352504134,1739140240330,-500.0,0.00011369,2]
[352504135,1739140240339,-621.31,0.00011369,2]
[352504136,1739140240349,-842.39,0.00011369,2]
[352504137,1739140240358,-500.0,0.00011369,2]
[352504138,1739140240367,-500.0,0.00011369,2]
[352504139,1739140240377,-500.0,0.00011369,2]
[352504140,1739140240386,-500.0,0.00011369,2]
[352504141,1739140240396,-332.81,0.00011369,2]
[352504142,1739140240406,-317.78,0.00011369,2]
[352504143,1739140240416,-500.0,0.00011369,2]
[352504144,1739140240426,-500.0,0.00011369,2]
[352504145,1739140240435,-500.0,0.00011369,2]
[352504146,1739140240444,-500.0,0.00011369,2]
[352504147,1739140240454,-1531.81,0.00011369,2]
[352504148,1739140240463,-1821.47,0.00011369,2]
[352504149,1739140240473,-900.0,0.00011438,2]
[352504150,1739140240482,-500.0,0.00011465,2]
[352504151,1739140240492,-396.0,0.00011483,2]
[352504152,1739140240501,-243.4237656,0.00011506,2]
[352504153,1739140240510,-2838.69,0.00011506,2]
[352504154,1739140240521,-500.0,0.00011506,2]
[352504155,1739140240531,-500.0,0.00011506,2]
[352504156,1739140240540,-500.0,0.00011506,2]
[352504157,1739140240549,-842.39,0.00011506,2]
[352504158,1739140240559,-500.0,0.00011506,2]
[352504159,1739140240568,-340.99588584,0.00011506,2]
[352504160,1739140240577,-500.0,0.00011506,2]
[352504161,1739140240587,-173.29517285,0.00011506,2]
[352504162,1739140240596,-500.0,0.00011506,2]
[352504163,1739140240605,-500.0,0.00011506,2]
[352504164,1739140240615,-441.78703655,0.00011506,2]
[352504165,1739140240624,-500.0,0.00011506,2]
[352504166,1739140240634,-1531.81,0.00011506,2]
[352504167,1739140240643,-1821.47,0.00011506,2]
[352504168,1739140240652,-587.0,0.00011624,2]
[352504169,1739140240663,-2838.69,0.00011643,2]
[352504170,1739140240673,-500.0,0.00011643,2]
[352504171,1739140240684,-500.0,0.00011643,2]
[352504172,1739140240693,-500.0,0.00011643,2]
[352504173,1739140240703,-842.39,0.00011643,2]
[352504174,1739140240714,-213.67,0.00011643,2]
[352504175,1739140240724,-500.0,0.00011643,2]
[352504176,1739140240734,-500.0,0.00011643,2]
[352504177,1739140240744,-500.0,0.00011643,2]
[352504178,1739140240754,-500.0,0.00011643,2]
[352504179,1739140240763,-1531.81,0.00011643,2]
[352504180,1739140240773,-1821.47,0.00011643,2]
[352504181,1739140240782,-500.0,0.00011668,2]
[352504182,1739140240792,-2838.69,0.0001178,2]
[352504183,1739140240802,-500.0,0.0001178,2]
[352504184,1739140240811,-306.11859601,0.0001178,2]
[352504185,1739140240822,-500.0,0.0001178,2]
[352504186,1739140240834,-842.39,0.0001178,2]
[352504187,1739140240843,-500.0,0.0001178,2]
[352504188,1739140240853,-500.0,0.0001178,2]
[352504189,1739140240863,-500.0,0.0001178,2]
[352504190,1739140240874,-500.0,0.0001178,2]
[352504191,1739140240884,-1531.81,0.0001178,2]
[352504192,1739140240894,-1821.47,0.0001178,2]
[352504193,1739140240903,-498.5283615,0.00011809,2]
[352504194,1739140240913,-2838.69,0.00011917,2]
[352504195,1739140240923,-500.0,0.00011917,2]
[352504196,1739140240933,-500.0,0.00011917,2]
[352504197,1739140240942,-842.39,0.00011917,2]
[352504198,1739140240951,-500.0,0.00011917,2]
[352504199,1739140240961,-500.0,0.00011917,2]
[352504200,1739140240970,-245.30750337,0.00011917,2]
[352504201,1739140240980,-500.0,0.00011917,2]
[352504202,1739140240990,-1531.81,0.00011917,2]
[352504203,1739140240999,-1821.47,0.00011917,2]
[352504204,1739140241008,-1000.0,0.00012013,2]
[352504205,1739140241018,-2838.69,0.00012054,2]
[352504206,1739140241027,-500.0,0.00012054,2]
[352504207,1739140241036,-500.0,0.00012054,2]
[352504208,1739140241045,-842.39,0.00012054,2]
[352504209,1739140241055,-500.0,0.00012054,2]
[352504210,1739140241064,-500.0,0.00012054,2]
[352504211,1739140241073,-500.0,0.00012054,2]
[352504212,1739140241083,-1531.81,0.00012054,2]
[352504213,1739140241091,-1821.47,0.00012054,2]
[352504214,1739140241101,-2838.69,0.00012191,2]
[352504215,1739140241110,-500.0,0.00012191,2]
[352504216,1739140241119,-500.0,0.00012191,2]
[352504217,1739140241128,-842.39,0.00012191,2]
[352504218,1739140241137,-500.0,0.00012191,2]
[352504219,1739140241146,-500.0,0.00012191,2]
[352504220,1739140241155,-500.0,0.00012191,2]
[352504221,1739140241165,-1531.81,0.00012191,2]
[352504222,1739140241174,-1821.47,0.00012191,2]
[352504223,1739140241183,-1070.18621855,0.00012216,2]
[352504224,1739140241193,-2838.69,0.00012328,2]
[352504225,1739140241203,-500.0,0.00012328,2]
[352504226,1739140241212,-500.0,0.00012328,2]
[352504227,1739140241221,-842.39,0.00012328,2]
[352504228,1739140241231,-500.0,0.00012328,2]
[352504229,1739140241240,-500.0,0.00012328,2]
[352504230,1739140241249,-500.0,0.00012328,2]
[352504231,1739140241259,-1531.81,0.00012328,2]
[352504232,1739140241269,-1821.47,0.00012328,2]
[352504233,1739140241279,-2838.69,0.00012465,2]
[352504234,1739140241288,-500.0,0.00012465,2]
[352504235,1739140241298,-500.0,0.00012465,2]
[352504236,1739140241307,-842.39,0.00012465,2]
[352504237,1739140241317,-500.0,0.00012465,2]
[352504238,1739140241328,-249.50619201,0.00012465,2]
[352504239,1739140241340,-500.0,0.00012465,2]
[352504240,1739140241349,-1531.81,0.00012465,2]
[352504241,1739140241359,-1821.47,0.00012465,2]
[352504242,1739140241369,-22605.86033991,0.00012476,2]
[352504243,1739140241379,-2838.69,0.00012602,2]
[352504244,1739140241390,-425.5492541,0.00012602,2]
[352504245,1739140241400,-500.0,0.00012602,2]
[352504246,1739140241410,-842.39,0.00012602,2]
[352504247,1739140241419,-500.0,0.00012602,2]
[352504248,1739140241428,-286.56767816,0.00012602,2]
[352504249,1739140241437,-1531.81,0.00012602,2]
[352504250,1739140241446,-1821.47,0.00012602,2]
[352504251,1739140241455,-2838.69,0.00012739,2]
[352504252,1739140241465,-500.0,0.00012739,2]
[352504253,1739140241474,-842.39,0.00012739,2]
[352504254,1739140241484,-500.0,0.00012739,2]
[352504255,1739140241493,-1531.81,0.00012739,2]
[352504256,1739140241502,-1821.47,0.00012739,2]
[352504257,1739140241513,-823.0,0.00012786,2]
[352504258,1739140241523,-900.0,0.00012808,2]
[352504259,1739140241532,-2838.69,0.00012876,2]
[352504260,1739140241541,-500.0,0.00012876,2]
[352504261,1739140241550,-842.39,0.00012876,2]
[352504262,1739140241559,-500.0,0.00012876,2]
[352504263,1739140241568,-1531.81,0.00012876,2]
[352504264,1739140241578,-1821.47,0.00012876,2]
[352504265,1739140241588,-2000.0,0.000129,2]
[352504266,1739140241598,-5044.40627054,0.000129,2]
[352504267,1739140241607,-5044.40627054,0.000129,2]
[352504268,1739140241616,-5044.40627054,0.000129,2]
[352504269,1739140241625,-7438.69753278,0.00013,2]
[352504270,1739140241634,-2838.69,0.00013013,2]
[352504271,1739140241644,-500.0,0.00013013,2]
[352504272,1739140241655,-842.39,0.00013013,2]
[352504273,1739140241666,-500.0,0.00013013,2]
[352504274,1739140241675,-1531.81,0.00013013,2]
[352504275,1739140241684,-1821.47,0.00013013,2]
[352504276,1739140241694,-1500.0,0.00013015,2]
[352504277,1739140241704,-2838.69,0.0001315,2]
[352504278,1739140241713,-500.0,0.0001315,2]
[352504279,1739140241722,-842.39,0.0001315,2]
[352504280,1739140241732,-576.32263499,0.0001315,2]
[352504281,1739140241743,-1531.81,0.0001315,2]
[352504282,1739140241752,-1821.47,0.0001315,2]
[352504283,1739140241764,-151.0,0.00013151,2]
[352504284,1739140241773,-2838.69,0.00013287,2]
[352504285,1739140241783,-500.0,0.00013287,2]
[352504286,1739140241793,-842.39,0.00013287,2]
[352504287,1739140241802,-1531.81,0.00013287,2]
[352504288,1739140241812,-1821.47,0.00013287,2]
[352504289,1739140241821,-2838.69,0.00013424,2]
[352504290,1739140241832,-500.0,0.00013424,2]
[352504291,1739140241842,-842.39,0.00013424,2]
[352504292,1739140241851,-1531.81,0.00013424,2]
[352504293,1739140241862,-1821.47,0.00013424,2]
[352504294,1739140241871,-5044.40627054,0.00013463,2]
[352504295,1739140241881,-2838.69,0.00013561,2]
[352504296,1739140241890,-500.0,0.00013561,2]
[352504297,1739140241899,-842.39,0.00013561,2]
[352504298,1739140241918,-1531.81,0.00013561,2]
[352504299,1739140241929,-1821.47,0.00013561,2]
[352504300,1739140241939,-500.0,0.00013698,2]
[352504301,1739140241950,-500.0,0.00013698,2]
[352504302,1739140241959,-382.31387728,0.00013698,2]
[352504303,1739140241970,-500.0,0.00013698,2]
[352504304,1739140241980,-2838.69,0.00013698,2]
[352504305,1739140241991,-500.0,0.00013698,2]
[352504306,1739140242001,-842.39,0.00013698,2]
[352504307,1739140242012,-1531.81,0.00013698,2]
[352504308,1739140242027,-1821.47,0.00013698,2]
[352504309,1739140242037,-205.699177,0.00013699,2]
[352504310,1739140242047,-1649.939283,0.00013699,2]
[352504311,1739140242056,-2047.900137,0.00013699,2]
[352504312,1739140242067,-202.27276175,0.00013699,2]
[352504313,1739140242077,-500.0,0.00013699,2]
[352504314,1739140242086,-500.0,0.00013699,2]
[352504315,1739140242247,-392.27229675,0.00013699,2]
[352504316,1739140242257,-500.0,0.00013699,2]
[352504317,1739140242271,-500.0,0.00013699,2]
[352504318,1739140242280,-500.0,0.00013699,2]
[352504319,1739140242291,-500.0,0.00013699,2]
[352504320,1739140242301,-500.0,0.00013699,2]
[352504321,1739140242311,-500.0,0.00013699,2]
[352504322,1739140242320,-500.0,0.00013699,2]
[352504323,1739140242330,-500.0,0.00013699,2]
[352504324,1739140242339,-500.0,0.00013699,2]
[352504325,1739140242348,-500.0,0.00013699,2]
[352504326,1739140242358,-500.0,0.00013699,2]
[352504328,1739140242368,-500.0,0.00013699,2]
[352504330,1739140242377,-500.0,0.00013699,2]
[352504332,1739140242386,-500.0,0.00013699,2]
[352504334,1739140242395,-500.0,0.00013699,2]
[352504335,1739140242405,-500.0,0.00013699,2]
[352504337,1739140242415,-500.0,0.00013699,2]
[352504338,1739140242425,-500.0,0.00013699,2]
[352504339,1739140242435,-500.0,0.00013699,2]
[352504340,1739140242444,-500.0,0.00013699,2]
[352504341,1739140242454,-500.0,0.00013699,2]
[352504342,1739140242464,-637.79658157,0.00013699,2]
[352504343,1739140242473,-500.0,0.00013699,2]
[352504344,1739140242483,-500.0,0.00013699,2]
[352504345,1739140242492,-500.0,0.00013699,2]
[352504346,1739140242502,-500.0,0.00013699,2]
[352504347,1739140242512,-500.0,0.00013699,2]
[352504348,1739140242523,-500.0,0.00013699,2]
[352504349,1739140242532,-500.0,0.00013699,2]
[352504351,1739140242542,-500.0,0.00013699,2]
[352504353,1739140242551,-500.0,0.00013699,2]
[352504355,1739140242560,-500.0,0.00013699,2]
[352504357,1739140242569,-500.0,0.00013699,2]
[352504359,1739140242579,-510.71771666,0.00013699,2]
[352504361,1739140242588,-500.0,0.00013699,2]
[352504362,1739140242597,-500.0,0.00013699,2]
[352504364,1739140242606,-500.0,0.00013699,2]
[352504366,1739140242615,-500.0,0.00013699,2]
[352504368,1739140242624,-500.0,0.00013699,2]
[352504370,1739140242633,-500.0,0.00013699,2]
[352504371,1739140242643,-500.0,0.00013699,2]
[352504372,1739140242651,-157.566,0.000137,2]
[352504374,1739140242660,-500.0,0.00013835,2]
[352504376,1739140242669,-2838.69,0.00013835,2]
[352504378,1739140242679,-474.29575917,0.00013835,2]
[352504380,1739140242688,-842.39,0.00013835,2]
[352504382,1739140242697,-1531.81,0.00013835,2]
[352504383,1739140242706,-1821.47,0.00013835,2]
[352504384,1739140242716,-2000.0,0.000139,2]
[352504385,1739140242725,-500.0,0.00013972,2]
[352504386,1739140242734,-2838.69,0.00013972,2]
[352504387,1739140242744,-842.39,0.00013972,2]
[352504389,1739140242753,-1531.81,0.00013972,2]
[352504390,1739140242762,-1821.47,0.00013972,2]
[352504392,1739140242773,-542.28230185,0.00014,2]
[352504393,1739140242789,-674.17155353,0.00014,2]
[352504394,1739140242800,-758.4281794,0.00014,2]
[352504395,1739140242812,-1180.45796522,0.00014,2]
[352504396,1739140242821,-2400.0,0.00014,2]
[352504397,1739140242833,-954.84741424,0.00014065,2]
[352504398,1739140242844,-197.15258576,0.00014065,2]
[352504400,1739140242854,-500.0,0.00014109,2]
[352504402,1739140242863,-2838.71336436,0.00014109,2]
[352504403,1739140242873,-842.43853192,0.00014109,2]
[352504405,1739140242882,-1531.946,0.00014109,2]
[352504407,1739140242892,-1821.62712539,0.00014109,2]
[352504408,1739140242901,-270.87453843,0.00014114,2]
[352504409,1739140242913,-1019.38447422,0.0001412,2]
[352504410,1739140242923,-900.0,0.00014178,2]
[352504411,1739140242933,-500.0,0.00014246,2]
[352504412,1739140242943,-1006.9922654,0.00014247,2]
[352504413,1739140242952,-153.833,0.0001425,2]
[352504414,1739140242962,-2000.0,0.00014313,2]
[352504415,1739140242971,-5044.40627054,0.00014332,2]
[352504416,1739140242981,-500.0,0.00014383,2]
[352504417,1739140242991,-271.0,0.0001448,2]
[352504418,1739140243001,-41.43104925,0.00014483,2]
[352504419,1739140243014,-354.56895075,0.00014483,2]
[352504420,1739140243024,-500.0,0.0001452,2]
[352504421,1739140243033,-13266.52937459,0.0001461,2]
[352504422,1739140243043,-543.06004894,0.00014657,2]
[352504423,1739140243053,-7571.84233965,0.00014808,2]
[352504424,1739140243062,-5000.0,0.00014808,2]
[352504426,1739140243071,-5000.0,0.00014808,2]
[352504427,1739140243080,-5000.0,0.00014808,2]
[352504428,1739140243089,-5000.0,0.00014808,2]
[352504429,1739140243099,-204.8284022,0.00014849,2]
[352504430,1739140243109,-152.0,0.00014872,2]
[352504431,1739140243118,-840.799999,0.000149,2]
[352504432,1739140243128,-568.14033865,0.000149,2]
[352504433,1739140243137,-500.0,0.00014973,2]
[352504434,1739140243146,-500.0,0.00014973,2]
[352504435,1739140243156,-331.38879641,0.00014973,2]
[352504436,1739140243170,-571.67110399,0.00014973,2]
[352504437,1739140243180,-500.0,0.00014973,2]
[352504438,1739140243189,-500.0,0.00014999,2]
[352504439,1739140243198,-197.32898479,0.00014999,2]
[352504440,1739140243208,-1998.91543265,0.00015,2]
[352504441,1739140243217,-30000.0,0.00015,2]
[352504442,1739140243227,-13221.34976601,0.00015,2]
[352504443,1739140243276,-2583.79999998,0.00015,2]
[352504444,1739140243288,-406.89000003,0.00015,2]
[352504445,1739140243301,-13787.96023398,0.00015,2]
[352504446,1739140243311,-30000.0,0.00015,2]
[352504447,1739140243321,-11324.79120405,0.00015,2]
[352504448,1739140243330,-43704.8241317,0.00015,2]
[352504449,1739140243473,-500.0,0.00015,2]
[352504483,1739140246133,-272.19120742,0.00015,2]
[352504487,1739141345318,-300.0,9.912e-05,2]
[352504488,1739141345361,-24114.7900951,9.913e-05,2]
[352504489,1739141345400,-400.0,0.00010685,2]
[352504490,1739141345442,-420.0,0.00010904,2]
[352504491,1739141345483,-500.0,0.00010958,2]
[352504492,1739141345527,-500.0,0.00010958,2]
[352504493,1739141345568,-202.22449788,0.00010958,2]
[352504494,1739141345608,-500.0,0.00010958,2]
[352504495,1739141345647,-500.0,0.00010958,2]
[352504496,1739141345688,-306.19,0.00010958,2]
[352504497,1739141345727,-181.71,0.00010958,2]
[352504498,1739141345768,-158.84,0.00010958,2]
[352504499,1739141345808,-500.0,0.00010958,2]
[352504500,1739141345847,-500.0,0.00010958,2]
[352504501,1739141345889,-500.0,0.00010958,2]
[352504502,1739141345930,-500.0,0.00010958,2]
[352504503,1739141345970,-500.0,0.00010958,2]
[352504504,1739141346012,-544.24,0.00010958,2]
[352504505,1739141346054,-500.0,0.00010958,2]
[352504506,1739141346095,-500.0,0.00010958,2]
[352504507,1739141346136,-500.0,0.00010958,2]
[352504508,1739141346176,-456.31,0.00010958,2]
[352504509,1739141346216,-500.0,0.00010958,2]
[352504510,1739141346258,-500.0,0.00010958,2]
[352504511,1739141346294,-500.0,0.00010958,2]
[352504512,1739141346334,-500.0,0.00010958,2]
[352504513,1739141346372,-500.0,0.00010958,2]
[352504514,1739141346411,-500.0,0.00010958,2]
[352504515,1739141346453,-500.0,0.00010958,2]
[352504516,1739141346647,-500.0,0.00010958,2]
[352504517,1739141346694,-500.0,0.00010958,2]
[352504518,1739141346735,-157.71,0.00010958,2]
[352504519,1739141346775,-500.0,0.00010958,2]
[352504520,1739141346814,-500.0,0.00010958,2]
[352504521,1739141346854,-500.0,0.00010958,2]
[352504522,1739141346893,-500.0,0.00010958,2]
[352504523,1739141346933,-500.0,0.00010958,2]
[352504524,1739141346972,-500.0,0.00010958,2]
[352504525,1739141347010,-446.8,0.00010958,2]
[352504526,1739141347050,-500.0,0.00010958,2]
[352504527,1739141347087,-500.0,0.00010958,2]
[352504528,1739141347125,-500.0,0.00010958,2]
[352504529,1739141347163,-500.0,0.00010958,2]
[352504530,1739141347205,-500.0,0.00010958,2]
[352504531,1739141347245,-500.0,0.00010958,2]
[352504532,1739141347283,-500.0,0.00010958,2]
[352504533,1739141347321,-500.0,0.00010958,2]
[352504534,1739141347360,-500.0,0.00010958,2]
[352504535,1739141347396,-500.0,0.00010958,2]
[352504536,1739141347434,-500.0,0.00010958,2]
[352504537,1739141347472,-500.0,0.00010958,2]
[352504538,1739141347508,-500.0,0.00010958,2]
[352504539,1739141347548,-500.0,0.00010958,2]
[352504540,1739141347586,-500.0,0.00010958,2]
[352504541,1739141347626,-500.0,0.00010958,2]
[352504542,1739141347668,-500.0,0.00010958,2]
[352504543,1739141347706,-500.0,0.00010958,2]
[352504544,1739141347742,-500.0,0.00010958,2]
[352504545,1739141347782,-500.0,0.00010958,2]
[352504546,1739141347820,-500.0,0.00010958,2]
[352504547,1739141347859,-500.0,0.00010958,2]
[352504548,1739141347896,-500.0,0.00010958,2]
[352504549,1739141347932,-500.0,0.00010958,2]
[352504550,1739141347969,-500.0,0.00010958,2]
[352504551,1739141348007,-500.0,0.00010958,2]
[352504552,1739141348043,-500.0,0.00010958,2]
[352504553,1739141348082,-500.0,0.00010958,2]
[352504554,1739141348120,-500.0,0.00010958,2]
[352504555,1739141348158,-500.0,0.00010958,2]
[352504556,1739141348202,-500.0,0.00010958,2]
[352504557,1739141348244,-500.0,0.00010958,2]
[352504558,1739141348284,-500.0,0.00010958,2]
[352504559,1739141348323,-500.0,0.00010958,2]
[352504560,1739141348364,-500.0,0.00010958,2]
[352504561,1739141348405,-500.0,0.00010958,2]
[352504562,1739141348444,-500.0,0.00010958,2]
[352504563,1739141348486,-500.0,0.00010958,2]
[352504564,1739141348528,-873.91,0.00010958,2]
[352504565,1739141348570,-500.0,0.00010958,2]
[352504566,1739141348610,-1402.88,0.00010958,2]
[352504567,1739141348649,-500.0,0.00010958,2]
[352504568,1739141348689,-4258.27,0.00010958,2]
[352504569,1739141348728,-589.98,0.00010958,2]
[352504570,1739141348768,-500.0,0.00010958,2]
[352504571,1739141348808,-500.0,0.00010958,2]
[352504572,1739141348848,-500.0,0.00010958,2]
[352504573,1739141348888,-3476.23,0.00010958,2]
[352504574,1739141348924,-507.25,0.00010958,2]
[352504575,1739141348962,-500.0,0.00010958,2]
[352504576,1739141349000,-1245.22,0.00010958,2]
[352504577,1739141349039,-544.57,0.00010958,2]
[352504578,1739141349077,-500.0,0.00010958,2]
[352504579,1739141349114,-500.0,0.00010958,2]
[352504580,1739141349153,-630.78718659,0.00010958,2]
[352504581,1739141349194,-1551.86,0.00010958,2]
[352504582,1739141349232,-500.0,0.00010958,2]
[352504583,1739141349272,-1287.02,0.00010958,2]
[352504584,1739141349313,-500.0,0.00010958,2]
[352504585,1739141349353,-747.95,0.00010958,2]
[352504586,1739141349391,-500.0,0.00010958,2]
[352504587,1739141349430,-500.0,0.00010958,2]
[352504588,1739141349469,-500.0,0.00010958,2]
[352504589,1739141349509,-4337.03,0.00010958,2]
[352504590,1739141349547,-8062.26,0.00010958,2]
[352504591,1739141349586,-500.0,0.00010958,2]
[352504592,1739141349628,-500.0,0.00010958,2]
[352504593,1739141349667,-605.23,0.00010958,2]
[352504594,1739141349708,-500.0,0.00010958,2]
[352504595,1739141349748,-500.0,0.00010958,2]
[352504596,1739141349785,-506.94,0.00010958,2]
[352504597,1739141349824,-621.62,0.00010958,2]
[352504598,1739141349866,-500.0,0.00010958,2]
[352504599,1739141349905,-500.0,0.00010958,2]
[352504600,1739141349944,-500.0,0.00010958,2]
[352504601,1739141349984,-500.0,0.00010958,2]
[352504602,1739141350024,-615.26,0.00010958,2]
[352504603,1739141350066,-500.0,0.00010958,2]
[352504604,1739141350102,-500.0,0.00010958,2]
[352504605,1739141350142,-500.0,0.00010958,2]
[352504606,1739141350181,-500.0,0.00010958,2]
[352504607,1739141350219,-500.0,0.00010958,2]
[352504608,1739141350259,-500.0,0.00010958,2]
[352504609,1739141350301,-500.0,0.00010958,2]
[352504610,1739141350340,-500.0,0.00010958,2]
[352504611,1739141350378,-500.0,0.00010958,2]
[352504612,1739141350417,-500.0,0.00010958,2]
[352504613,1739141350458,-794.79,0.00010958,2]
[352504614,1739141350497,-500.0,0.00010958,2]
[352504615,1739141350537,-807.22,0.00010958,2]
[352504616,1739141350573,-202.21,0.00010959,2]
[352504617,1739141350610,-168.51,0.00010959,2]